bitfinex/quotes_BTCUSD_20260101
["timestamp","ask_amount","ask_price","bid_price","bid_amount"]
[1767242071895,0.350347,87649.0,87633.0,0.37667701]
[1767242072694,0.350347,87649.0,87633.0,0.36526579]
[1767242073121,0.350347,87649.0,87633.0,0.37667701]
[1767242073553,0.350347,87649.0,87633.0,0.36526579]
[1767242073952,0.350347,87649.0,87633.0,0.37667701]
[1767242074290,0.350347,87649.0,87633.0,0.36526579]
[1767242076031,0.350347,87649.0,87631.0,0.01144]
[1767242090055,0.350347,87649.0,87626.0,0.36526579]
[1767242091162,0.350347,87649.0,87624.0,0.16024]
[1767242094118,0.350347,87649.0,87624.0,0.01144]
[1767242094732,0.350347,87649.0,87622.0,0.40303905]
[1767242095247,0.350347,87649.0,87623.0,0.01144]
[1767242101588,0.350347,87649.0,87625.0,0.35734558]
[1767242102192,0.338907,87649.0,87630.0,0.89651759]
[1767242102392,0.01144,87648.0,87631.0,0.35734558]
[1767242102592,0.0001851,87652.0,87631.0,0.35734558]
[1767242102807,0.01144,87651.0,87631.0,0.35734558]
[1767242104161,0.01144,87651.0,87631.0,0.36875706]
[1767242106107,0.01144,87651.0,87632.0,0.36875693]
[1767242106318,0.01144,87651.0,87635.0,0.35734558]
[1767242109647,0.0001851,87652.0,87635.0,0.35734558]
[1767242109862,0.0001851,87652.0,87636.0,0.35734558]
[1767242110012,0.01144,87651.0,87636.0,0.35734558]
[1767242111336,0.35619295,87652.0,87636.0,0.35734558]
[1767242111538,0.01144,87650.0,87636.0,0.35734558]
[1767242118134,0.01144,87650.0,87640.0,0.51653248]
[1767242119262,0.01144,87649.0,87640.0,0.51653248]
[1767242119678,0.0003126,87651.0,87640.0,0.51653248]
[1767242120059,0.01144,87650.0,87640.0,0.51653248]
[1767242120649,0.0003126,87651.0,87640.0,0.51653248]
[1767242120848,0.01144,87650.0,87640.0,0.51653248]
[1767242121054,0.0003126,87651.0,87640.0,0.51653248]
[1767242121392,0.01144,87650.0,87641.0,0.34474852]
[1767242123505,0.01144,87650.0,87640.0,0.51653248]
[1767242123506,0.0003126,87651.0,87644.0,0.01140979]
[1767242123707,0.0003126,87651.0,87647.0,0.34474852]
[1767242124865,0.0003126,87651.0,87647.0,0.34484138]
[1767242126830,0.0003126,87651.0,87648.0,0.34474852]
[1767242129131,0.0003126,87651.0,87647.0,9.286e-05]
[1767242129132,0.0115846,87660.0,87647.0,9.286e-05]
[1767242129378,0.0115846,87660.0,87650.0,0.51653248]
[1767242130866,0.0115846,87660.0,87650.0,0.51598348]
[1767242131772,0.0115846,87660.0,87650.0,0.51653248]
[1767242132214,0.33367277,87659.0,87650.0,0.51653248]
[1767242132388,0.33367277,87659.0,87647.0,9.286e-05]
[1767242132712,0.33367277,87659.0,87647.0,8.6e-07]
[1767242141919,0.52811708,87660.0,87647.0,8.6e-07]
[1767242143217,0.86178985,87660.0,87647.0,8.6e-07]
[1767242145566,0.33367277,87659.0,87647.0,8.6e-07]
[1767242158941,0.52811708,87660.0,87635.0,0.1488]
[1767242158942,0.31953864,87656.0,87635.0,0.1488]
[1767242159170,0.31953864,87649.0,87635.0,0.1488]
[1767242159326,0.33097864,87649.0,87635.0,0.1488]
[1767242164553,0.33097864,87649.0,87631.0,0.01144]
[1767242167685,0.31953864,87640.0,87630.0,0.0001446]
[1767242168068,0.31944764,87640.0,87630.0,0.0001446]
[1767242168501,0.31944764,87640.0,87630.0,0.51667708]
[1767242168881,0.01144,87642.0,87630.0,0.51667708]
[1767242170090,0.33097864,87642.0,87630.0,0.0001446]
[1767242170467,0.33097864,87642.0,87631.0,0.01149762]
[1767242170690,0.33097864,87642.0,87630.0,0.0001446]
[1767242173362,0.31953864,87639.0,87630.0,0.0001446]
[1767242173561,0.000144,87630.0,87621.0,0.0001446]
[1767242174081,0.31953864,87633.0,87621.0,0.0001446]
[1767242178182,0.51665766,87640.0,87621.0,0.0001446]
[1767242178183,0.31953864,87631.0,87621.0,0.0001446]
[1767242184699,0.01144,87632.0,87631.0,0.00055]
[1767242184896,0.33877586,87649.0,87631.0,0.00055]
[1767242185154,0.33877586,87647.0,87626.0,0.01141213]
[1767242185356,0.33877586,87647.0,87627.0,0.35383715]
[1767242185512,0.33877586,87647.0,87627.0,0.34242515]
[1767242185916,0.33877586,87647.0,87620.0,0.52829766]
[1767242185917,0.33877586,87647.0,87621.0,0.0001446]
[1767242186172,0.01144,87648.0,87621.0,0.0001446]
[1767242186173,0.000549,87627.0,87621.0,0.0001446]
[1767242186318,0.33877586,87631.0,87621.0,0.0001446]
[1767242186502,0.01144,87632.0,87621.0,0.0001446]
[1767242186503,0.01144,87632.0,87631.0,0.00055]
[1767242186704,0.01144,87634.0,87631.0,0.00055]
[1767242186905,0.01144,87634.0,87621.0,0.34256975]
[1767242187110,0.01144,87634.0,87622.0,0.34242515]
[1767242187351,0.01144,87634.0,87622.0,0.34250183]
[1767242195476,0.01144,87638.0,87622.0,0.34250183]
[1767242195680,0.35021586,87638.0,87622.0,0.34250183]
[1767242197006,0.33877586,87638.0,87622.0,0.34250183]
[1767242197210,0.35021586,87638.0,87622.0,0.34250183]
[1767242198215,0.35021586,87638.0,87616.0,0.01141344]
[1767242198216,0.000549,87622.0,87614.0,0.03425621]
[1767242198543,0.01144,87625.0,87614.0,0.03436243]
[1767242198749,0.01144,87625.0,87614.0,0.00010622]
[1767242205753,0.35021586,87625.0,87614.0,0.00010622]
[1767242221254,0.0001446,87643.0,87615.0,0.31638694]
[1767242221255,0.32282369,87639.0,87615.0,0.31638694]
[1767242221459,0.33426369,87638.0,87620.0,0.8330446]
[1767242221878,0.33426369,87638.0,87620.0,0.31638694]
[1767242222078,0.33330776,87638.0,87620.0,0.31638694]
[1767242222427,0.33426369,87637.0,87621.0,0.31638694]
[1767242224826,0.0001446,87643.0,87621.0,0.31638694]
[1767242224827,0.01144,87636.0,87621.0,0.31638694]
[1767242225572,0.01115899,87636.0,87621.0,0.31638694]
[1767242227629,0.000549,87621.0,87612.0,0.32797154]
[1767242228213,0.32282369,87626.0,87612.0,0.32797154]
[1767242228666,0.32282369,87626.0,87612.0,0.0001446]
[1767242228971,0.32282369,87626.0,87614.0,2.2e-07]
[1767242232611,0.32282369,87623.0,87614.0,2.2e-07]
[1767242240680,0.01144,87622.0,87614.0,2.2e-07]
[1767242240880,0.32282369,87623.0,87614.0,2.2e-07]
[1767242241101,0.32910786,87629.0,87614.0,2.2e-07]
[1767242241277,0.01144,87628.0,87614.0,2.2e-07]
[1767242241489,0.32910786,87629.0,87614.0,2.2e-07]
[1767242241688,0.01144,87628.0,87614.0,2.2e-07]
[1767242242758,0.34492156,87628.0,87614.0,2.2e-07]
[1767242242960,0.33348156,87628.0,87614.0,2.2e-07]
[1767242243143,0.01144,87627.0,87614.0,2.2e-07]
[1767242243343,0.03059383,87650.0,87614.0,2.2e-07]
[1767242243344,0.51695126,87640.0,87615.0,0.31999598]
[1767242243543,0.34492156,87639.0,87627.0,0.000106]
[1767242243913,0.33348156,87636.0,87618.0,0.31999598]
[1767242244112,0.51695126,87630.0,87618.0,0.31999598]
[1767242244347,0.01144,87629.0,87618.0,0.31999598]
[1767242245565,0.33348156,87636.0,87618.0,0.31999598]
[1767242245771,0.33348156,87636.0,87621.0,0.31999598]
[1767242245772,0.01144,87635.0,87621.0,0.31999598]
[1767242246679,0.34492156,87635.0,87621.0,0.31999598]
[1767242246881,0.34492156,87635.0,87614.0,2.2e-07]
[1767242247064,0.33348156,87635.0,87616.0,0.31999598]
[1767242247268,0.34492156,87634.0,87616.0,0.31999598]
[1767242247477,0.01144,87633.0,87616.0,0.31999598]
[1767242252142,0.34492156,87633.0,87616.0,0.31999598]
[1767242254678,0.51695126,87630.0,87616.0,0.31999598]
[1767242255479,0.33348156,87629.0,87614.0,2.2e-07]
[1767242259751,0.33348156,87629.0,87616.0,0.01141344]
[1767242259934,0.51695126,87630.0,87617.0,0.33140929]
[1767242260136,0.33348156,87634.0,87617.0,0.33140929]
[1767242260137,0.01144,87629.0,87617.0,0.31999598]
[1767242263813,0.01144,87629.0,87619.0,0.51695126]
[1767242265004,0.01144,87629.0,87620.0,0.31999598]
[1767242270074,0.0001446,87643.0,87629.0,0.000106]
[1767242270298,0.0001446,87643.0,87631.0,0.31018226]
[1767242270497,0.0115846,87643.0,87631.0,0.31018226]
[1767242271930,0.0001446,87643.0,87631.0,0.31018226]
[1767242272134,0.0115846,87643.0,87631.0,0.31018226]
[1767242272461,0.0115846,87643.0,87631.0,0.32159374]
[1767242272673,0.0115846,87643.0,87631.0,0.31018226]
[1767242272891,0.0001446,87643.0,87631.0,0.32159374]
[1767242273285,0.0001446,87643.0,87631.0,0.31018226]
[1767242273638,0.0001446,87643.0,87631.0,0.32159374]
[1767242273850,0.0001446,87643.0,87631.0,0.31018226]
[1767242281953,0.0001446,87643.0,87634.0,0.31018226]
[1767242283538,0.0001446,87643.0,87633.0,0.01144]
[1767242289007,0.00032477,87634.0,87633.0,0.01144]
[1767242289231,0.32320131,87649.0,87633.0,0.01144]
[1767242291394,0.32320131,87649.0,87639.0,0.51695126]
[1767242291599,0.32320131,87649.0,87639.0,0.51585226]
[1767242294538,0.32320131,87649.0,87633.0,0.01144]
[1767242294809,0.32200025,87649.0,87633.0,0.01144]
[1767242297350,0.32200025,87649.0,87624.0,0.31018226]
[1767242297524,0.32320131,87642.0,87624.0,0.01144]
[1767242297718,0.33464131,87642.0,87624.0,0.01144]
[1767242298747,0.32320131,87639.0,87624.0,0.01144]
[1767242298903,0.32320131,87639.0,87623.0,0.1488]
[1767242299300,0.32320131,87639.0,87621.0,0.0115846]
[1767242300858,0.32320131,87639.0,87621.0,0.0001446]
[1767242302222,0.32320131,87639.0,87621.0,0.32263652]
[1767242305262,0.32320131,87639.0,87616.0,0.00054279]
[1767242305263,0.01144,87642.0,87616.0,0.00054279]
[1767242305264,0.30310345,87630.0,87616.0,0.00054279]
[1767242316347,0.0458246,87643.0,87630.0,0.000549]
[1767242316348,0.30310345,87639.0,87630.0,0.000549]
[1767242316582,0.30310345,87637.0,87630.0,0.000549]
[1767242316764,0.30310345,87637.0,87616.0,0.32303471]
[1767242316947,0.30310345,87637.0,87617.0,0.32249192]
[1767242320052,0.30310345,87637.0,87617.0,0.33390523]
[1767242320696,0.30310345,87637.0,87621.0,0.32249192]
[1767242320886,0.01144,87636.0,87621.0,0.32249192]
[1767242325958,0.01144,87636.0,87621.0,0.3220524]
[1767242327112,0.31454345,87636.0,87621.0,0.3220524]
[1767242328752,0.31454345,87636.0,87621.0,0.31221503]
[1767242353576,0.31454345,87636.0,87621.0,0.31210095]
[1767242356108,0.01144,87636.0,87621.0,0.31210095]
[1767242356323,0.04568,87647.0,87620.0,0.01144]
[1767242356324,0.0001446,87660.0,87620.0,0.01144]
[1767242356529,0.01144,87654.0,87651.0,0.0004054]
[1767242356741,0.01144,87655.0,87651.0,0.0004054]
[1767242356956,0.01144,87658.0,87651.0,0.0004054]
[1767242357169,0.01144,87658.0,87647.0,0.0114094]
[1767242357408,0.01144,87658.0,87646.0,0.30896571]
[1767242357736,0.01149249,87658.0,87646.0,0.30896571]
[1767242358328,0.01149249,87658.0,87644.0,0.01144]
[1767242358576,0.31545584,87657.0,87644.0,0.01144]
[1767242361863,0.01149249,87658.0,87630.0,0.52805087]
[1767242361864,0.000144,87644.0,87635.0,0.01144]
[1767242362278,0.8272836,87651.0,87635.0,0.01144]
[1767242363249,0.52793466,87651.0,87635.0,0.01144]
[1767242363432,0.29934894,87650.0,87635.0,0.01144]
[1767242366349,0.29934894,87647.0,87635.0,0.01144]
[1767242374839,0.01144,87651.0,87635.0,0.32119112]
[1767242375037,0.51649466,87650.0,87635.0,0.32119112]
[1767242377407,0.8158436,87650.0,87635.0,0.32119112]
[1767242378666,0.51649466,87650.0,87638.0,0.30989572]
[1767242378875,0.51649466,87650.0,87639.0,0.30975112]
[1767242379093,0.01144,87651.0,87639.0,0.30975112]
[1767242379477,0.51649466,87650.0,87639.0,0.30975112]
[1767242391377,0.51649466,87650.0,87639.0,0.30963704]
[1767242397308,0.51649466,87650.0,87638.0,0.0001446]
[1767242398056,0.01144,87651.0,87650.0,0.001099]
[1767242398402,0.01144,87651.0,87639.0,0.29402366]
[1767242398760,0.01144,87651.0,87639.0,0.29387718]
[1767242399123,0.01144,87651.0,87640.0,0.51649466]
[1767242400808,0.01144,87651.0,87639.0,0.29387718]
[1767242400809,0.51649466,87650.0,87639.0,0.29387718]
[1767242401644,0.51649466,87650.0,87638.0,0.0001446]
[1767242402954,0.51649466,87650.0,87639.0,0.29402366]
[1767242403735,0.51649466,87650.0,87638.0,0.0001446]
[1767242404762,0.51649466,87650.0,87638.0,0.29416826]
[1767242410378,0.51649466,87650.0,87638.0,0.0001446]
[1767242416590,0.01144,87651.0,87638.0,0.0001446]
[1767242418826,0.29806451,87651.0,87638.0,0.0001446]
[1767242426544,0.29806451,87651.0,87638.0,3.052e-05]
[1767242428550,0.29751551,87651.0,87638.0,3.052e-05]
[1767242430022,0.010891,87651.0,87638.0,0.30693439]
[1767242435054,0.01100509,87651.0,87638.0,0.30693439]
[1767242444752,0.01100509,87651.0,87641.0,0.30690387]
[1767242452300,5.249e-05,87658.0,87643.0,0.29217023]
[1767242453317,5.249e-05,87658.0,87643.0,0.30361023]
[1767242453694,0.30119647,87658.0,87643.0,0.30361023]
[1767242455935,5.249e-05,87658.0,87643.0,0.30361023]
[1767242460304,5.249e-05,87658.0,87643.0,0.29217023]
[1767242460504,0.30114398,87657.0,87644.0,0.01144]
[1767242464370,0.30114398,87657.0,87643.0,0.01144]
[1767242473626,5.249e-05,87658.0,87643.0,0.01144]
[1767242473829,5.249e-05,87658.0,87644.0,0.29217023]
[1767242477516,5.249e-05,87658.0,87643.0,0.01144]
[1767242477517,0.51657194,87670.0,87643.0,0.01144]
[1767242477518,0.29953698,87668.0,87658.0,5.2e-05]
[1767242477736,8.99640908,87677.0,87658.0,5.2e-05]
[1767242477737,0.01144,87666.0,87658.0,5.2e-05]
[1767242477922,0.01144,87666.0,87654.0,0.29217023]
[1767242477923,0.01155408,87666.0,87654.0,0.29217023]
[1767242478159,0.01155408,87666.0,87652.0,0.29217023]
[1767242478657,0.01155408,87666.0,87656.0,0.51626029]
[1767242481106,0.01155408,87666.0,87657.0,0.287472]
[1767242481310,0.000549,87657.0,87653.0,0.01144]
[1767242481732,0.01155408,87666.0,87653.0,0.01144]
[1767242482356,0.28437622,87666.0,87653.0,0.01144]
[1767242482976,0.28437622,87666.0,87653.0,0.010891]
[1767242483756,0.28437622,87666.0,87654.0,0.01144]
[1767242483953,0.27282214,87663.0,87654.0,0.01149249]
[1767242484409,0.23853934,87663.0,87654.0,0.01149249]
[1767242484571,0.23853934,87663.0,87654.0,5.249e-05]
[1767242484767,0.23853934,87663.0,87642.0,0.436272]
[1767242484768,0.23853934,87663.0,87651.0,0.01107663]
[1767242484937,0.27282214,87660.0,87642.0,0.436272]
[1767242485148,0.27282214,87660.0,87643.0,0.01144]
[1767242486106,0.27293622,87660.0,87643.0,0.01144]
[1767242486467,0.27293622,87660.0,87642.0,0.436272]
[1767242486672,0.27293622,87660.0,87643.0,0.01144]
[1767242488628,0.27293622,87660.0,87644.0,0.287472]
[1767242488822,0.27293622,87660.0,87650.0,0.51626029]
[1767242489404,0.27293622,87660.0,87644.0,0.287472]
[1767242497104,0.78919651,87660.0,87644.0,0.287472]
[1767242498261,0.78919651,87660.0,87645.0,0.01144]
[1767242498578,0.00011408,87660.0,87651.0,0.287472]
[1767242500551,0.00011408,87660.0,87652.0,0.01144]
[1767242503092,0.51626029,87662.0,87652.0,0.01144]
[1767242503498,0.78908243,87662.0,87652.0,0.01144]
[1767242506796,0.00010618,87663.0,87662.0,0.00055]
[1767242506998,0.00010618,87663.0,87652.0,0.298912]
[1767242506999,0.00010618,87663.0,87654.0,0.287472]
[1767242507511,0.00010618,87663.0,87656.0,0.01140823]
[1767242507933,1.8e-07,87663.0,87654.0,0.29888049]
[1767242508096,1.8e-07,87663.0,87655.0,0.01140836]
[1767242508307,1.8e-07,87663.0,87656.0,0.01140823]
[1767242508487,1.8e-07,87663.0,87654.0,0.287472]
[1767242509386,1.8e-07,87663.0,87655.0,0.01144]
[1767242513149,1.8e-07,87663.0,87654.0,0.27814252]
[1767242513347,1.8e-07,87663.0,87655.0,0.01144]
[1767242520872,0.27350581,87674.0,87656.0,0.27814252]
[1767242521224,0.51626029,87670.0,87656.0,0.27814252]
[1767242526033,0.51626029,87670.0,87657.0,0.01144]
[1767242527226,0.27350581,87674.0,87657.0,0.28958252]
[1767242527421,0.51626029,87670.0,87657.0,0.28958252]
[1767242529771,0.27350581,87674.0,87659.0,0.51626029]
[1767242529952,0.27350581,87674.0,87660.0,0.01144]
[1767242530268,0.51626029,87670.0,87660.0,0.01144]
[1767242531497,0.51626029,87670.0,87660.0,0.28958252]
[1767242534085,0.51626029,87670.0,87661.0,0.01144]
[1767242537595,0.51626029,87671.0,87661.0,0.01144]
[1767242538188,0.51626029,87671.0,87654.0,0.27814252]
[1767242538390,0.51626029,87671.0,87660.0,0.01144]
[1767242538591,0.27350581,87674.0,87660.0,0.01144]
[1767242541382,0.27350581,87674.0,87659.0,0.01144]
[1767242546176,0.27350581,87674.0,87654.0,0.2782487]
[1767242546358,0.27350581,87674.0,87655.0,0.01144]
[1767242546693,0.27350581,87674.0,87655.0,0.02284836]
[1767242547118,0.27350581,87674.0,87656.0,0.01144]
[1767242549432,0.27840436,87669.0,87656.0,0.01144]
[1767242549803,0.27840436,87669.0,87657.0,0.01144]
[1767242550787,0.00135166,87669.0,87658.0,0.27778216]
[1767242551026,0.27453936,87675.0,87660.0,0.01140771]
[1767242551227,0.27453936,87675.0,87658.0,0.28919013]
[1767242551228,0.27453936,87675.0,87659.0,0.01140784]
[1767242551532,0.27453936,87675.0,87660.0,0.27778216]
[1767242551684,0.27453936,87675.0,87661.0,0.27778216]
[1767242552326,0.27453936,87675.0,87661.0,0.28918974]
[1767242552671,9.00784908,87677.0,87662.0,0.28918961]
[1767242552815,9.00784908,87677.0,87662.0,0.27778216]
[1767242553216,9.00784908,87677.0,87663.0,0.01144]
[1767242555269,9.00784908,87677.0,87663.0,0.28922216]
[1767242556777,8.99640908,87677.0,87663.0,0.27778216]
[1767242557113,8.99640908,87677.0,87663.0,0.28922216]
[1767242558404,8.99640908,87677.0,87663.0,0.30062948]
[1767242559213,8.99640908,87677.0,87665.0,0.28918922]
[1767242559581,8.99640908,87677.0,87664.0,0.01140719]
[1767242559582,8.96213356,87677.0,87668.0,0.01140667]
[1767242559781,8.96213356,87677.0,87669.0,0.27778216]
[1767242559988,8.92785804,87677.0,87669.0,0.27778216]
[1767242560994,8.89358252,87677.0,87669.0,0.27778216]
[1767242561200,8.859307,87677.0,87669.0,0.27778216]
[1767242562397,8.859307,87677.0,87669.0,0.26567907]
[1767242564888,8.859307,87677.0,87656.0,0.01144]
[1767242565041,8.859307,87677.0,87651.0,0.01144]
[1767242565042,0.2770527,87669.0,87651.0,0.01144]
[1767242565225,0.2770527,87669.0,87647.0,0.28933616]
[1767242565432,0.2770527,87669.0,87655.0,0.01144]
[1767242566048,0.01144,87675.0,87647.0,0.0001446]
[1767242566049,0.2770527,87664.0,87647.0,0.0001446]
[1767242566253,0.2770527,87659.0,87647.0,0.0001446]
[1767242566492,0.24277365,87659.0,87647.0,0.0001446]
[1767242566672,0.2084946,87659.0,87648.0,0.01144]
[1767242566877,0.17421555,87659.0,87648.0,0.01144]
[1767242567078,0.1399365,87659.0,87648.0,0.01144]
[1767242567282,0.10455845,87659.0,87648.0,0.01144]
[1767242567489,0.0702794,87659.0,87648.0,0.01144]
[1767242567708,0.03600035,87659.0,87648.0,0.01144]
[1767242567915,0.13450129,87658.0,87648.0,0.01144]
[1767242568155,0.10022224,87658.0,87648.0,0.01144]
[1767242568304,0.06594319,87658.0,87648.0,0.01144]
[1767242568518,0.03166414,87658.0,87648.0,0.01144]
[1767242568717,0.0017213,87659.0,87648.0,0.01144]
[1767242570232,0.51626621,87660.0,87648.0,0.01144]
[1767242570781,0.2719655,87659.0,87648.0,0.010891]
[1767242573634,0.2719655,87659.0,87647.0,0.0001446]
[1767242573963,5.652e-05,87664.0,87638.0,0.0115846]
[1767242573964,0.000144,87647.0,87638.0,0.0115846]
[1767242574163,0.51626621,87650.0,87638.0,0.0115846]
[1767242574669,0.2719655,87649.0,87638.0,0.0001446]
[1767242580486,0.51626621,87641.0,87631.0,0.0080196]
[1767242581440,0.51626621,87641.0,87630.0,0.0115846]
[1767242581754,0.78823171,87650.0,87634.0,0.2939689]
[1767242581918,0.78823171,87650.0,87635.0,0.2939689]
[1767242581919,0.51626621,87650.0,87635.0,0.2939689]
[1767242582116,0.51626621,87650.0,87637.0,0.2939689]
[1767242582483,0.01144,87649.0,87638.0,0.01141057]
[1767242582682,0.01144,87648.0,87637.0,0.2939689]
[1767242583852,0.01144,87648.0,87637.0,0.3053796]
[1767242584054,0.01144,87648.0,87638.0,0.01141057]
[1767242584261,0.01144,87648.0,87639.0,0.01141044]
[1767242584594,0.01144,87648.0,87638.0,0.01141057]
[1767242584824,0.01144,87648.0,87639.0,0.01141044]
[1767242585026,0.2719655,87656.0,87639.0,0.2939689]
[1767242585224,0.01144,87657.0,87648.0,0.00055]
[1767242585432,0.51641081,87660.0,87647.0,0.2939689]
[1767242585636,0.01144,87659.0,87647.0,0.2939689]
[1767242592790,0.2834055,87659.0,87642.0,0.01144]
[1767242594429,0.2834055,87659.0,87588.0,0.20502521]
[1767242594431,0.2834055,87659.0,87616.0,0.00054279]
[1767242594432,0.2719655,87641.0,87616.0,0.00054279]
[1767242594586,0.51626621,87645.0,87616.0,0.00054279]
[1767242594587,0.2719655,87630.0,87616.0,0.00054279]
[1767242594792,0.01144,87629.0,87616.0,0.00054279]
[1767242595728,0.01154611,87629.0,87616.0,0.00054279]
[1767242596229,0.01154611,87629.0,87621.0,0.0004503]
[1767242598946,0.01154611,87629.0,87622.0,0.2939689]
[1767242599148,0.01154611,87629.0,87622.0,0.2944192]
[1767242599861,0.00010611,87629.0,87622.0,0.2944192]
[1767242600059,0.01144,87628.0,87622.0,0.2944192]
[1767242601977,0.01144,87627.0,87622.0,0.2944192]
[1767242604479,0.00010611,87629.0,87622.0,0.2944192]
[1767242604716,0.01144,87626.0,87623.0,0.29486079]
[1767242605343,0.01144,87626.0,87623.0,0.29531109]
[1767242609908,0.01144,87626.0,87616.0,0.00054279]
[1767242609909,9.87e-05,87623.0,87616.0,0.00054279]
[1767242610293,0.01144,87626.0,87616.0,0.00054279]
[1767242610825,0.52820279,87626.0,87616.0,0.00054279]
[1767242610956,0.01144,87626.0,87616.0,0.00054279]
[1767242615867,0.00010611,87629.0,87616.0,0.00054279]
[1767242616219,0.01144,87628.0,87616.0,0.00054279]
[1767242616442,0.51676279,87626.0,87616.0,0.00054279]
[1767242616610,0.29388739,87628.0,87616.0,0.00054279]
[1767242616818,0.01144,87628.0,87616.0,0.00054279]
[1767242618310,0.01144,87628.0,87616.0,0.29540358]
[1767242619758,0.51676279,87626.0,87616.0,0.29540358]
[1767242620174,0.01144,87628.0,87616.0,0.29540358]
[1767242620943,0.29388739,87628.0,87616.0,0.00054279]
[1767242622435,0.01144,87628.0,87616.0,0.00054279]
[1767242622886,0.01144,87628.0,87616.0,0.29540358]
[1767242623581,0.29388739,87628.0,87616.0,0.00054279]
[1767242626606,0.01144,87628.0,87616.0,0.00054279]
[1767242627155,0.51676279,87626.0,87616.0,0.00054279]
[1767242627783,0.79921018,87626.0,87616.0,0.00054279]
[1767242627998,0.28244739,87625.0,87616.0,0.00054279]
[1767242630221,0.28244739,87625.0,87616.0,0.00044379]
[1767242631130,0.28244739,87625.0,87611.0,0.0002]
[1767242631367,0.29066521,87620.0,87611.0,0.0002]
[1767242631573,0.01144,87619.0,87611.0,0.0002]
[1767242638121,0.30210521,87619.0,87611.0,0.0002]
[1767242638777,0.01144,87619.0,87611.0,0.0002]
[1767242640335,0.010891,87619.0,87611.0,0.0002]
[1767242640744,0.29066521,87625.0,87611.0,0.0002]
[1767242641147,0.00010611,87629.0,87611.0,0.0002]
[1767242641148,0.00010611,87629.0,87612.0,0.29077741]
[1767242641352,0.01144,87628.0,87612.0,0.29077741]
[1767242641953,0.00010611,87629.0,87612.0,0.29077741]
[1767242642194,0.01144,87628.0,87612.0,0.29077741]
[1767242642491,0.01144,87627.0,87612.0,0.29077741]
[1767242642793,0.01144,87626.0,87615.0,0.29077741]
[1767242642995,0.00010611,87629.0,87626.0,0.00055]
[1767242643151,0.01144,87628.0,87626.0,0.00055]
[1767242643503,0.01144,87628.0,87621.0,0.29077741]
[1767242644903,0.01144,87628.0,87613.0,0.29077741]
[1767242647707,0.00010611,87629.0,87615.0,0.30219098]
[1767242647906,0.01144,87628.0,87615.0,0.29077741]
[1767242650457,0.01144,87627.0,87617.0,0.29077741]
[1767242652914,0.01144,87627.0,87611.0,0.05726991]
[1767242652915,0.000549,87617.0,87611.0,0.0002]
[1767242653101,0.29066521,87618.0,87611.0,0.0002]
[1767242654262,0.29066521,87618.0,87601.0,0.1488]
[1767242654263,0.01144,87619.0,87602.0,0.29077741]
[1767242654459,0.01144,87619.0,87604.0,0.29077741]
[1767242654649,0.01124,87619.0,87604.0,0.29077741]
[1767242655249,0.01124,87619.0,87603.0,0.1460213]
[1767242655250,0.29066521,87618.0,87603.0,0.1460213]
[1767242656082,0.01124,87619.0,87604.0,0.29077741]
[1767242656757,0.011374,87619.0,87604.0,0.29077741]
[1767242658960,0.29066521,87618.0,87603.0,0.1460213]
[1767242659712,0.29079921,87618.0,87603.0,0.1460213]
[1767242659912,0.29079921,87618.0,87600.0,0.51696279]
[1767242660215,0.29079921,87618.0,87600.0,0.81294136]
[1767242660625,0.29079921,87618.0,87600.0,0.29617857]
[1767242674748,0.51698914,87610.0,87600.0,0.0002]
[1767242674993,0.31704921,87609.0,87600.0,0.0002]
[1767242675574,0.01144,87609.0,87600.0,0.0002]
[1767242681980,0.000134,87615.0,87609.0,0.00055]
[1767242682196,0.01144,87614.0,87610.0,0.28593395]
[1767242683389,0.01144,87614.0,87602.0,0.28593395]
[1767242683840,0.01144,87614.0,87602.0,0.29734921]
[1767242684025,0.000134,87615.0,87604.0,0.29734895]
[1767242684202,0.01089,87613.0,87604.0,0.28593395]
[1767242684435,0.01144,87612.0,87604.0,0.28593395]
[1767242685373,0.000134,87615.0,87607.0,0.28593395]
[1767242685610,0.01144,87611.0,87607.0,0.28593395]
[1767242685742,0.01144,87611.0,87606.0,0.28593395]
[1767242685938,0.01144,87611.0,87606.0,0.29734869]
[1767242686198,0.01144,87611.0,87608.0,0.28593395]
[1767242687150,0.01144,87613.0,87608.0,0.28593395]
[1767242688779,0.000134,87615.0,87608.0,0.28593395]
[1767242688965,0.01144,87614.0,87608.0,0.28593395]
[1767242689350,0.01144,87613.0,87608.0,0.28593395]
[1767242690504,0.000134,87615.0,87608.0,0.28593395]
[1767242690665,0.01144,87615.0,87608.0,0.29579877]
[1767242690868,0.01144,87615.0,87609.0,0.29579877]
[1767242691555,0.01144,87617.0,87610.0,0.29579877]
[1767242691755,0.01144,87617.0,87610.0,0.30721299]
[1767242692180,0.01144,87618.0,87610.0,0.30721299]
[1767242692588,0.01144,87618.0,87606.0,0.05707318]
[1767242692590,0.000549,87610.0,87575.0,0.0002]
[1767242692795,0.06776038,87609.0,87575.0,0.0002]
[1767242693012,0.51698914,87604.0,87593.0,3e-07]
[1767242693340,0.00840902,87602.0,87593.0,3e-07]
[1767242694506,0.00840902,87602.0,87593.0,0.0003533]
[1767242697220,0.01144,87608.0,87593.0,0.0003533]
[1767242697221,0.00925421,87607.0,87593.0,0.0003533]
[1767242697558,0.00952636,87602.0,87593.0,0.0003533]
[1767242698543,0.00979382,87600.0,87593.0,0.0003533]
[1767242700330,0.0103149,87615.0,87600.0,0.000544]
[1767242700452,0.05716,87609.0,87594.0,0.29579877]
[1767242701208,0.51698914,87610.0,87594.0,0.29579877]
[1767242701414,0.05716,87609.0,87594.0,0.29579877]
[1767242701620,0.51698914,87604.0,87594.0,0.29579877]
[1767242701765,0.51698914,87604.0,87594.0,0.29524377]
[1767242705239,0.05716,87609.0,87594.0,0.29524377]
[1767242707786,0.06973151,87609.0,87594.0,0.29524377]
[1767242707986,0.01257151,87608.0,87594.0,0.29524377]
[1767242708182,0.01257151,87608.0,87593.0,0.0003533]
[1767242708389,0.51698914,87603.0,87593.0,0.0003533]
[1767242708601,0.01144,87602.0,87593.0,0.0003533]
[1767242709887,0.01301571,87601.0,87593.0,0.0003533]
[1767242710287,0.05716,87600.0,87593.0,0.0003533]
[1767242714815,0.01405613,87599.0,87593.0,0.0003533]
[1767242716113,0.05716,87600.0,87593.0,0.0003533]
[1767242717972,0.51698914,87603.0,87593.0,0.0003533]
[1767242718130,0.05716,87599.0,87593.0,0.0003533]
[1767242718529,0.51698914,87603.0,87593.0,0.0003533]
[1767242718733,0.01144,87598.0,87593.0,0.29615207]
[1767242718930,0.010891,87598.0,87593.0,0.29615207]
[1767242719127,0.51698914,87603.0,87593.0,0.29615207]
[1767242719329,0.05716,87602.0,87593.0,0.29615207]
[1767242721282,0.05716,87601.0,87593.0,0.29615207]
[1767242722940,0.51724974,87610.0,87593.0,0.29615207]